fUSD/lending_fUSD_20240424
["ID","MTS","AMOUNT","RATE_DAILY","PERIOD"]
[323427931,1713979843446,-93.59879904,0.00011488,2]
[323427932,1713979843491,-406.40120096,0.00011488,2]
[323427933,1713979843501,-500.0,0.00011488,2]
[323427934,1713979843511,-930.49011292,0.00011488,2]
[323427946,1713979846407,-1325.11,0.00011487,2]
[323427947,1713979846417,-1245.37988708,0.00011488,2]
[323427948,1713979846427,-1404.33,0.00011488,2]
[323427949,1713979846437,-500.0,0.00011488,2]
[323427950,1713979846447,-837.52371442,0.00011488,2]
[323427951,1713979846476,-265.60628558,0.00011488,2]
[323427952,1713979846486,-14.8687353,0.00011488,2]
[323427953,1713979846497,-400.0,0.00011488,2]
[323427959,1713980615185,586.59,8.253e-05,2]
[323427962,1713980688438,20174.45661466,8.253e-05,2]
[323427963,1713980690208,155.0,8.253e-05,2]
[323427964,1713980704281,195.71648188,8.253e-05,2]
[323427965,1713980708453,1820.94927564,8.253e-05,2]
[323427966,1713980739696,18580.76492204,8.253e-05,2]
[323427977,1713981032346,-155.0,8.788e-05,2]
[323427978,1713981032358,-159.42749356,8.789e-05,2]
[323427979,1713981032371,-56.64961721,8.789e-05,2]
[323427980,1713981032381,-406.00698545,8.827e-05,2]
[323427981,1713981032505,-469.29674785,8.827e-05,2]
[323427982,1713981032516,-432.38722525,8.827e-05,2]
[323427983,1713981032528,-908.1415596,8.827e-05,2]
[323427984,1713981032537,-247.82015446,9.19e-05,2]
[323427985,1713981032547,-934.65,9.936e-05,2]
[323427986,1713981032555,-160.0,9.947e-05,2]
[323427987,1713981032564,-250.0,9.97e-05,2]
[323427988,1713981032574,-155.0,0.00010035,2]
[323427989,1713981032583,-166.7,0.00010036,2]
[323427990,1713981032592,-2586.5568601,0.00010088,2]
[323427991,1713981032620,-1381.24522767,0.00010088,2]
[323427992,1713981032634,-1966.22875406,0.00010088,2]
[323427993,1713981032646,-748.58819144,0.00010088,2]
[323428024,1713981038395,-4480.48753922,0.00010088,2]
[323428026,1713981038407,-283.7531272,0.00010088,2]
[323428029,1713981038418,-820.17749397,0.00010088,2]
[323428031,1713981038431,-646.05424917,0.00010088,2]
[323428033,1713981038443,-9857.41616985,0.00010088,2]
[323428035,1713981038453,-62217.22205171,0.00010089,2]
[323428037,1713981038463,-426.85192286,0.0001009,2]
[323428039,1713981038474,-518.94618326,0.0001009,2]
[323428040,1713981038548,-1765.0,0.0001009,2]
[323428041,1713981038560,-657.44189388,0.0001009,2]
[323428042,1713981038570,-150.0,0.00010091,2]
[323428043,1713981038579,-1645.6373613,0.00010097,2]
[323428044,1713981038648,-241.9526387,0.00010097,2]
[323428045,1713981038658,-20.69747939,0.00010221,2]
[323428046,1713981038673,-819.30252061,0.00010221,2]
[323428047,1713981038682,-153.67,0.00010247,2]
[323428048,1713981038692,-162.43,0.00010397,2]
[323428049,1713981038702,-153.67,0.00010425,2]
[323428050,1713981038712,-227.91,0.00010479,2]
[323428051,1713981038722,-499.99,0.00010479,2]
[323428052,1713981038731,-586.59,0.00010517,2]
[323428053,1713981038740,-153.67,0.00010603,2]
[323428054,1713981038750,-153.67,0.00010781,2]
[323428055,1713981038759,-210.0,0.000111,2]
[323428056,1713981038785,-160.0,0.0001119,2]
[323428058,1713981038795,-2500.0,0.00011286,2]
[323428060,1713981038804,-170.78356453,0.00011288,2]
[323428061,1713981038813,-1510.08172634,0.0001137,2]
[323428062,1713981038826,-313.27,0.0001137,2]
[323428063,1713981038837,-1176.64827366,0.0001137,2]
[323428064,1713981038846,-163.36351189,0.00011379,2]
[323428065,1713981038857,-5544.02787355,0.00011379,2]
[323428066,1713981038867,-10000.0,0.0001138,2]
[323428067,1713981038877,-630.02,0.00011385,2]
[323428068,1713981038886,-835.67,0.00011385,2]
[323428069,1713981038896,-702.18,0.00011385,2]
[323428070,1713981038905,-500.0,0.00011385,2]
[323428071,1713981038915,-2171.96,0.00011385,2]
[323428072,1713981038924,-1693.99,0.00011385,2]
[323428073,1713981038933,-500.0,0.00011385,2]
[323428074,1713981038944,-500.0,0.00011385,2]
[323428075,1713981038953,-347.79,0.00011385,2]
[323428076,1713981038963,-1193.52,0.00011385,2]
[323428077,1713981038972,-500.0,0.00011385,2]
[323428078,1713981038981,-1269.9,0.00011385,2]
[323428079,1713981038989,-1035.86,0.00011385,2]
[323428080,1713981038998,-1181.28,0.00011385,2]
[323428081,1713981039007,-38077.34364006,0.00011386,2]
[323428082,1713981039020,-998.84386033,0.00011386,2]
[323428085,1713981039046,-1983.15544656,0.00011386,2]
[323428087,1713981039055,-500.0,0.00011386,2]
[323428089,1713981039064,-500.0,0.00011386,2]
[323428091,1713981039073,-500.0,0.00011386,2]
[323428093,1713981039082,-500.0,0.00011386,2]
[323428095,1713981039091,-500.0,0.00011386,2]
[323428097,1713981039102,-948.32,0.00011386,2]
[323428099,1713981039112,-500.0,0.00011386,2]
[323428101,1713981039122,-500.0,0.00011386,2]
[323428103,1713981039131,-500.0,0.00011386,2]
[323428104,1713981039141,-500.0,0.00011386,2]
[323428106,1713981039151,-500.0,0.00011386,2]
[323428107,1713981039161,-632.68,0.00011386,2]
[323428108,1713981039172,-500.0,0.00011386,2]
[323428109,1713981039186,-659.84,0.00011386,2]
[323428110,1713981039197,-424.13858624,0.00011386,2]
[323428111,1713981039207,-500.0,0.00011386,2]
[323428112,1713981039216,-150.0,0.00011386,2]
[323428113,1713981039227,-540.56,0.00011386,2]
[323428114,1713981039237,-500.0,0.00011386,2]
[323428115,1713981039246,-500.0,0.00011386,2]
[323428116,1713981039258,-558.79,0.00011386,2]
[323428117,1713981039269,-500.0,0.00011386,2]
[323428118,1713981039279,-500.0,0.00011386,2]
[323428119,1713981039290,-500.0,0.00011386,2]
[323428120,1713981039301,-962.27,0.00011386,2]
[323428121,1713981039312,-711.89,0.00011386,2]
[323428122,1713981039323,-500.0,0.00011386,2]
[323428123,1713981039332,-500.0,0.00011386,2]
[323428124,1713981039343,-500.0,0.00011386,2]
[323428125,1713981039353,-500.0,0.00011386,2]
[323428126,1713981039366,-1990.63,0.00011386,2]
[323428127,1713981039375,-1758.12201025,0.00011386,2]
[323428128,1713981039389,-2489.65798975,0.00011386,2]
[323428129,1713981039399,-546.76,0.00011386,2]
[323428130,1713981039408,-1793.15353851,0.00011386,2]
[323428131,1713981039436,-651.19754,0.00011386,2]
[323428140,1713981040612,-316.93019554,0.0001138,2]
[323428141,1713981040625,-935.05800452,0.0001138,2]
[323428142,1713981040635,-500.0,0.00011385,2]
[323428143,1713981040644,-1116.02892149,0.00011386,2]
[323428144,1713981040654,-446.15422411,0.00011386,2]
[323428145,1713981040666,-53.84577589,0.00011386,2]
[323428146,1713981040676,-223.94695121,0.00011386,2]
[323428147,1713981040687,-638.67349999,0.00011386,2]
[323428148,1713981040760,-376.6895488,0.00011386,2]
[323428149,1713981040770,-500.0,0.00011386,2]
[323428150,1713981040779,-675.63,0.00011386,2]
[323428151,1713981040789,-1737.62,0.00011386,2]
[323428152,1713981040800,-500.0,0.00011386,2]
[323428153,1713981040808,-436.8780462,0.00011386,2]
[323428154,1713981040918,-63.1219538,0.00011386,2]
[323428155,1713981040927,-4029.87,0.00011386,2]
[323428156,1713981040937,-2130.5187776,0.00011386,2]
[323428157,1713981040948,-718.9012224,0.00011386,2]
[323428158,1713981040958,-1848.5,0.00011386,2]
[323428159,1713981040967,-500.0,0.00011386,2]
[323428160,1713981040977,-397.11397758,0.00011386,2]
[323428161,1713981040989,-102.88602242,0.00011386,2]
[323428162,1713981040998,-389.42977871,0.00011386,2]
[323428187,1713981043501,-500.0,0.00011385,2]
[323428188,1713981043510,-110.57022129,0.00011386,2]
[323428189,1713981043519,-519.16,0.00011386,2]
[323428190,1713981043528,-1912.93,0.00011386,2]
[323428191,1713981043538,-500.0,0.00011386,2]
[323428192,1713981043547,-500.0,0.00011386,2]
[323428193,1713981043556,-760.74,0.00011386,2]
[323428194,1713981043565,-2926.16,0.00011386,2]
[323428195,1713981043575,-1330.34,0.00011386,2]
[323428196,1713981043585,-518.4,0.00011386,2]
[323428197,1713981043594,-500.0,0.00011386,2]
[323428198,1713981043603,-500.0,0.00011386,2]
[323428199,1713981043613,-590.26,0.00011386,2]
[323428200,1713981043622,-1089.94,0.00011386,2]
[323428201,1713981043632,-5244.27,0.00011386,2]
[323428202,1713981043641,-500.0,0.00011386,2]
[323428203,1713981043650,-605.07,0.00011386,2]
[323428204,1713981043660,-966.28,0.00011386,2]
[323428205,1713981043670,-500.0,0.00011386,2]
[323428206,1713981043679,-1031.74,0.00011386,2]
[323428207,1713981043688,-357.88960284,0.00011386,2]
[323428208,1713981043698,-500.0,0.00011386,2]
[323428209,1713981043707,-1612.09,0.00011386,2]
[323428210,1713981043716,-500.0,0.00011386,2]
[323428211,1713981043728,-1047.27,0.00011386,2]
[323428212,1713981043738,-1456.39,0.00011386,2]
[323428213,1713981043747,-1609.22,0.00011386,2]
[323428214,1713981043757,-1194.4,0.00011386,2]
[323428215,1713981043766,-677.22,0.00011386,2]
[323428216,1713981043775,-690.33,0.00011386,2]
[323428217,1713981043784,-500.0,0.00011386,2]
[323428218,1713981043794,-1054.07,0.00011386,2]
[323428219,1713981043803,-901.87,0.00011386,2]
[323428220,1713981043813,-1839.44,0.00011386,2]
[323428221,1713981043822,-500.0,0.00011386,2]
[323428222,1713981043833,-628.4,0.00011386,2]
[323428223,1713981043843,-500.0,0.00011386,2]
[323428224,1713981043853,-500.0,0.00011386,2]
[323428225,1713981043862,-500.0,0.00011386,2]
[323428226,1713981043871,-884.24,0.00011386,2]
[323428227,1713981043880,-693.32,0.00011386,2]
[323428228,1713981043889,-956.82,0.00011386,2]
[323428229,1713981043898,-500.0,0.00011386,2]
[323428230,1713981043907,-505.35,0.00011386,2]
[323428231,1713981043916,-500.0,0.00011386,2]
[323428232,1713981043925,-694.45,0.00011386,2]
[323428233,1713981043934,-1152.44,0.00011386,2]
[323428234,1713981043944,-1798.43,0.00011386,2]
[323428235,1713981043953,-500.0,0.00011386,2]
[323428236,1713981043962,-500.0,0.00011386,2]
[323428237,1713981043972,-1247.56,0.00011386,2]
[323428238,1713981043980,-1345.81,0.00011386,2]
[323428239,1713981043989,-1188.17,0.00011386,2]
[323428240,1713981043998,-500.0,0.00011386,2]
[323428241,1713981044007,-687.24,0.00011386,2]
[323428242,1713981044016,-2179.82,0.00011386,2]
[323428243,1713981044025,-1057.17,0.00011386,2]
[323428244,1713981044035,-500.0,0.00011386,2]
[323428245,1713981044044,-500.0,0.00011386,2]
[323428246,1713981044053,-500.0,0.00011386,2]
[323428247,1713981044062,-500.0,0.00011386,2]
[323428248,1713981044071,-500.0,0.00011386,2]
[323428249,1713981044080,-500.0,0.00011386,2]
[323428250,1713981044090,-521.67,0.00011386,2]
[323428251,1713981044099,-3125.57,0.00011386,2]
[323428252,1713981044108,-500.0,0.00011386,2]
[323428253,1713981044119,-500.0,0.00011386,2]
[323428254,1713981044129,-500.0,0.00011386,2]
[323428255,1713981044138,-500.0,0.00011386,2]
[323428256,1713981044147,-500.0,0.00011386,2]
[323428257,1713981044156,-1056.39,0.00011386,2]
[323428258,1713981044165,-2623.12,0.00011386,2]
[323428259,1713981044174,-576.16,0.00011386,2]
[323428260,1713981044186,-500.0,0.00011386,2]
[323428261,1713981044195,-500.0,0.00011386,2]
[323428262,1713981044204,-779.35,0.00011386,2]
[323428263,1713981044213,-500.0,0.00011386,2]
[323428264,1713981044223,-882.66,0.00011386,2]
[323428265,1713981044232,-3023.7,0.00011386,2]
[323428266,1713981044242,-2996.78,0.00011386,2]
[323428267,1713981044252,-500.0,0.00011386,2]
[323428268,1713981044263,-500.0,0.00011386,2]
[323428269,1713981044273,-3876.22,0.00011386,2]
[323428270,1713981044282,-1758.03,0.00011386,2]
[323428271,1713981044291,-1907.69,0.00011386,2]
[323428272,1713981044300,-465.30725072,0.00011386,2]
[323428273,1713981044309,-500.0,0.00011386,2]
[323428274,1713981044318,-134154.75087303,0.00011387,2]
[323428275,1713981044377,-3258.21845551,0.00011387,2]
[323428288,1713981046430,-500.0,0.00011385,2]
[323428289,1713981046440,-500.0,0.00011386,2]
[323428290,1713981046451,-5504.4,0.00011387,2]
[323428291,1713981046488,-841.71075631,0.00011387,2]
[323428292,1713981046502,-1468.82311187,0.00011387,2]
[323428293,1713981046517,-1583.72672779,0.00011387,2]
[323428294,1713981062463,854.80491383,8.253e-05,2]
[323428295,1713981125839,173.08810832,8.253e-05,2]
[323428297,1713981143666,175.763681,8.253e-05,2]
[323428308,1713981569275,564.23,8.219e-05,2]
[323428315,1713981737163,316.94596568,8.219e-05,2]
[323428316,1713981757168,316.94596568,8.219e-05,2]
[323428318,1713981774792,316.94596568,8.219e-05,2]
[323428319,1713981800542,316.94596568,8.219e-05,2]
[323428320,1713981816931,316.94596568,8.219e-05,2]
[323428321,1713981838547,316.94596568,8.219e-05,2]
[323428322,1713981860546,316.94596568,8.219e-05,2]
[323428323,1713981878541,316.94596568,8.219e-05,2]
[323428324,1713981900557,316.94596568,8.219e-05,2]
[323428325,1713981916867,316.94596568,8.219e-05,2]
[323428326,1713981938563,316.94596568,8.219e-05,2]
[323428328,1713981962557,316.94596568,8.219e-05,2]
[323428329,1713981980559,316.94596568,8.219e-05,2]
[323428330,1713981996872,225.18441623,8.219e-05,2]
[323428333,1713982060910,546.72,8.219e-05,2]
[323428334,1713982084556,155.05786429,8.219e-05,2]
[323428343,1713982231521,-155.0,8.844e-05,2]
[323428345,1713982231531,-139.11291824,8.845e-05,2]
[323428347,1713982231585,-199.88708176,8.845e-05,2]
[323428348,1713982231594,-735.49862307,8.848e-05,2]
[323428349,1713982231604,-1799.76,9.415e-05,2]
[323428350,1713982231613,-1931.9,9.626e-05,2]
[323428351,1713982231623,-162.43,9.641e-05,2]
[323428352,1713982231633,-1263.3557939,9.652e-05,2]
[323428353,1713982231644,-12816.94230815,9.653e-05,2]
[323428354,1713982231655,-271.29633934,9.653e-05,2]
[323428355,1713982231667,-457.08997388,9.653e-05,2]
[323428356,1713982231692,-2890.47693783,9.653e-05,2]
[323428357,1713982231703,-976.87209743,9.653e-05,2]
[323428358,1713982231744,-4830.43984845,9.653e-05,2]
[323428359,1713982231755,-527.3901076,9.653e-05,2]
[323428360,1713982231765,-151.65,9.653e-05,2]
[323428361,1713982231775,-895.6692749,9.654e-05,2]
[323428362,1713982231803,-1684.59202001,9.654e-05,2]
[323428363,1713982231815,-992.13142098,9.654e-05,2]
[323428389,1713982237528,-1802.15414276,9.654e-05,2]
[323428390,1713982237745,-17980.70904875,9.654e-05,2]
[323428391,1713982237755,-414.36839064,9.655e-05,2]
[323428392,1713982237765,-3696.39556617,9.656e-05,2]
[323428393,1713982237777,-1298.02,9.656e-05,2]
[323428394,1713982237791,-3073.7629553,9.656e-05,2]
[323428395,1713982237815,-5695.36876398,9.656e-05,2]
[323428396,1713982237825,-7440.91901201,9.662e-05,2]
[323428397,1713982237834,-8323.6,9.673e-05,2]
[323428398,1713982237843,-499.99,9.673e-05,2]
[323428399,1713982237852,-224.99,9.673e-05,2]
[323428400,1713982237866,-160.0,9.688e-05,2]
[323428401,1713982237875,-250.0,9.688e-05,2]
[323428402,1713982237884,-151.65,9.695e-05,2]
[323428403,1713982237894,-151.65,9.737e-05,2]
[323428404,1713982237902,-151.65,9.779e-05,2]
[323428405,1713982237911,-151.65,9.821e-05,2]
[323428406,1713982237920,-151.65,9.863e-05,2]
[323428407,1713982237929,-151.65,9.905e-05,2]
[323428408,1713982237938,-151.65,9.947e-05,2]
[323428409,1713982237947,-904.0,9.982e-05,2]
[323428410,1713982237956,-151.65,9.989e-05,2]
[323428411,1713982237965,-155.0,0.0001003,2]
[323428412,1713982237975,-151.65,0.00010031,2]
[323428413,1713982237984,-151.65,0.00010073,2]
[323428414,1713982237993,-181.29,0.00010074,2]
[323428415,1713982238002,-151.65,0.00010115,2]
[323428416,1713982238011,-927.13,0.00010127,2]
[323428417,1713982238020,-151.65,0.00010156,2]
[323428418,1713982238030,-151.04,0.0001026,2]
[323428419,1713982238039,-113.04521125,0.00010273,2]
[323428420,1713982238060,-37.99478875,0.00010273,2]
[323428421,1713982238069,-151.04,0.00010286,2]
[323428422,1713982238079,-3830.94,0.00010286,2]
[323428423,1713982238088,-151.04,0.00010299,2]
[323428424,1713982238097,-151.04,0.00010311,2]
[323428425,1713982238109,-546.72,0.00010456,2]
[323428426,1713982238118,-1000.0,0.00011,2]
[323428427,1713982238127,-904.0,0.0001123,2]
[323428428,1713982238137,-1661.62700536,0.00011285,2]
[323428438,1713982239629,-1944.97412781,0.00011285,2]
[323428439,1713982239641,-3887.01912148,0.00011285,2]
[323428440,1713982239683,-915.94314115,0.00011285,2]
[323428441,1713982239745,-667.77,0.00011285,2]
[323428442,1713982239757,-303.94329984,0.00011285,2]
[323428443,1713982239849,-1856.79740436,0.00011285,2]
[323428444,1713982239859,-205.6900163,0.00011286,2]
[323428445,1713982239868,-680.2897,0.00011286,2]
[323428446,1713982239878,-500.0,0.00011286,2]
[323428447,1713982239889,-314.2947,0.00011286,2]
[323428448,1713982239899,-581.4312,0.00011286,2]
[323428449,1713982239909,-347.954734,0.000113,2]
[323428450,1713982239920,-1000.0,0.0001135,2]
[323428451,1713982239928,-1000.0,0.0001135,2]
[323428452,1713982239938,-1000.0,0.0001135,2]
[323428453,1713982239948,-707.0,0.0001135,2]
[323428454,1713982239957,-1000.0,0.0001135,2]
[323428455,1713982239966,-1000.0,0.0001135,2]
[323428456,1713982239976,-1000.0,0.0001135,2]
[323428457,1713982239986,-1000.0,0.0001135,2]
[323428458,1713982239996,-1000.0,0.0001136,2]
[323428459,1713982240005,-1328.0,0.0001136,2]
[323428460,1713982240015,-1000.0,0.0001136,2]
[323428461,1713982240025,-3125.98041281,0.0001138,2]
[323428462,1713982240053,-318.49938052,0.0001138,2]
[323428463,1713982240080,-838.2916304,0.0001138,2]
[323428493,1713982242694,-1871.59,0.0001138,2]
[323428494,1713982242706,-515.41576284,0.0001138,2]
[323428495,1713982242717,-1000.0,0.0001138,2]
[323428496,1713982242726,-1000.0,0.0001138,2]
[323428497,1713982242736,-1000.0,0.0001138,2]
[323428498,1713982242747,-1000.0,0.0001138,2]
[323428499,1713982242758,-1000.0,0.0001138,2]
[323428500,1713982242767,-1000.0,0.0001138,2]
[323428501,1713982242776,-178.74583716,0.0001138,3]
[323428502,1713982242802,-821.25416284,0.0001138,3]
[323428503,1713982242811,-1000.0,0.0001138,3]
[323428504,1713982242821,-1000.0,0.0001138,2]
[323428505,1713982242830,-1000.0,0.0001138,2]
[323428506,1713982242840,-879.14083715,0.0001138,2]
[323428507,1713982242968,-120.85916285,0.0001138,2]
[323428508,1713982242978,-1000.0,0.0001138,2]
[323428509,1713982242988,-1000.0,0.0001138,2]
[323428510,1713982242998,-1000.0,0.0001138,2]
[323428511,1713982243009,-1000.0,0.0001138,2]
[323428512,1713982243018,-1000.0,0.0001138,2]
[323428513,1713982243028,-1000.0,0.0001138,2]
[323428514,1713982243037,-1000.0,0.0001138,2]
[323428515,1713982243046,-1000.0,0.0001138,2]
[323428516,1713982243056,-500.0,0.00011384,2]
[323428517,1713982243065,-800.85,0.00011384,2]
[323428518,1713982243075,-500.0,0.00011384,2]
[323428519,1713982243085,-672.93,0.00011384,2]
[323428520,1713982243095,-926.02,0.00011384,2]
[323428521,1713982243105,-500.0,0.00011384,2]
[323428522,1713982243115,-2081.47,0.00011384,2]
[323428523,1713982243125,-1623.41,0.00011384,2]
[323428524,1713982243134,-1395.71,0.00011384,2]
[323428525,1713982243143,-500.0,0.00011384,2]
[323428526,1713982243152,-649.01,0.00011384,2]
[323428527,1713982243162,-500.0,0.00011384,2]
[323428528,1713982243171,-1143.79,0.00011384,2]
[323428529,1713982243180,-1762.8,0.00011384,2]
[323428530,1713982243190,-992.7,0.00011384,2]
[323428531,1713982243199,-500.0,0.00011384,2]
[323428532,1713982243208,-500.0,0.00011384,2]
[323428533,1713982243217,-1723.5,0.00011384,2]
[323428534,1713982243226,-1216.99,0.00011384,2]
[323428535,1713982243235,-500.0,0.00011384,2]
[323428536,1713982243244,-1132.06,0.00011384,2]
[323428537,1713982243253,-500.0,0.00011385,2]
[323428538,1713982243262,-500.0,0.00011385,2]
[323428539,1713982243271,-500.0,0.00011385,2]
[323428540,1713982243281,-500.0,0.00011385,2]
[323428541,1713982243291,-500.0,0.00011385,2]
[323428542,1713982243301,-500.0,0.00011385,2]
[323428543,1713982243311,-500.0,0.00011385,2]
[323428544,1713982243321,-500.0,0.00011385,2]
[323428545,1713982243331,-227.37083717,0.00011385,2]
[323428556,1713982245582,-272.62916283,0.00011385,2]
[323428557,1713982245591,-500.0,0.00011385,2]
[323428558,1713982245602,-500.0,0.00011385,2]
[323428559,1713982245613,-500.0,0.00011385,2]
[323428560,1713982245624,-500.0,0.00011385,2]
[323428561,1713982245633,-551.61,0.00011385,2]
[323428562,1713982245643,-500.0,0.00011385,2]
[323428563,1713982245653,-500.0,0.00011385,2]
[323428564,1713982245663,-500.0,0.00011385,2]
[323428565,1713982245672,-199.42152433,0.00011385,2]
[323428566,1713982245681,-500.0,0.00011385,2]
[323428567,1713982245692,-500.0,0.00011385,2]
[323428568,1713982245702,-908.8,0.00011385,2]
[323428569,1713982245712,-500.0,0.00011385,2]
[323428570,1713982245721,-500.0,0.00011385,2]
[323428571,1713982245733,-500.0,0.00011385,2]
[323428572,1713982245743,-500.0,0.00011385,2]
[323428573,1713982245753,-500.0,0.00011385,2]
[323428574,1713982245763,-500.0,0.00011385,2]
[323428575,1713982245773,-500.0,0.00011385,2]
[323428576,1713982245782,-201.38198898,0.00011385,2]
[323428577,1713982245791,-500.0,0.00011385,2]
[323428578,1713982245803,-500.0,0.00011385,2]
[323428579,1713982245813,-500.0,0.00011385,2]
[323428580,1713982245823,-606.31,0.00011385,2]
[323428581,1713982245833,-585.94,0.00011385,2]
[323428582,1713982245843,-500.0,0.00011385,2]
[323428583,1713982245852,-1008.46,0.00011385,2]
[323428584,1713982245862,-500.0,0.00011385,2]
[323428585,1713982245874,-500.0,0.00011385,2]
[323428586,1713982245883,-632.35,0.00011385,2]
[323428587,1713982245893,-784.09,0.00011385,2]
[323428588,1713982245902,-150.0,0.00011385,2]
[323428592,1713982246149,-500.0,0.00011385,2]
[323428593,1713982246158,-518.04,0.00011385,2]
[323428594,1713982246169,-500.0,0.00011385,2]
[323428595,1713982246178,-500.0,0.00011385,2]
[323428596,1713982246187,-500.0,0.00011385,2]
[323428597,1713982246197,-500.0,0.00011385,2]
[323428598,1713982246206,-500.0,0.00011385,2]
[323428599,1713982246216,-500.0,0.00011385,2]
[323428600,1713982246225,-500.0,0.00011385,2]
[323428601,1713982246235,-513.41068,0.00011385,2]
[323428602,1713982246245,-513.41068,0.00011385,2]
[323428603,1713982246254,-734.07,0.00011385,2]
[323428604,1713982246264,-513.41068,0.00011385,2]
[323428605,1713982246273,-513.41068,0.00011385,2]
[323428606,1713982246282,-981.14,0.00011385,2]
[323428607,1713982246292,-500.0,0.00011385,2]
[323428608,1713982246301,-488.10524691,0.00011385,2]
[323428609,1713982246311,-500.0,0.00011385,2]
[323428610,1713982246320,-500.0,0.00011385,2]
[323428611,1713982246329,-500.0,0.00011385,2]
[323428612,1713982246338,-681.97,0.00011385,2]
[323428613,1713982246348,-922.17,0.00011385,2]
[323428614,1713982246357,-500.0,0.00011385,2]
[323428615,1713982246366,-500.0,0.00011385,2]
[323428616,1713982246380,-500.0,0.00011385,2]
[323428617,1713982246389,-682.22,0.00011385,2]
[323428618,1713982246398,-500.0,0.00011385,2]
[323428619,1713982246408,-1199.73,0.00011385,2]
[323428620,1713982246417,-500.0,0.00011385,2]
[323428621,1713982246425,-1933.26,0.00011385,2]
[323428622,1713982246435,-500.0,0.00011385,2]
[323428623,1713982246444,-500.0,0.00011385,2]
[323428624,1713982246453,-500.0,0.00011385,2]
[323428625,1713982246462,-500.0,0.00011385,2]
[323428626,1713982246471,-1111.15,0.00011385,2]
[323428627,1713982246480,-500.0,0.00011385,2]
[323428628,1713982246490,-501.85,0.00011385,2]
[323428629,1713982246499,-500.0,0.00011385,2]
[323428630,1713982246508,-500.0,0.00011385,2]
[323428631,1713982246517,-500.0,0.00011385,2]
[323428632,1713982246526,-500.0,0.00011385,2]
[323428633,1713982246535,-2513.82,0.00011385,2]
[323428634,1713982246545,-513.68,0.00011385,2]
[323428635,1713982246562,-500.0,0.00011385,2]
[323428636,1713982246572,-917.76,0.00011385,2]
[323428637,1713982246581,-746.88,0.00011385,2]
[323428638,1713982246590,-1186.99,0.00011385,2]
[323428639,1713982246600,-1592.75,0.00011385,2]
[323428640,1713982246609,-4070.79,0.00011385,2]
[323428641,1713982246620,-536.72,0.00011385,2]
[323428642,1713982246630,-2456.25029556,0.00011385,2]
[323428643,1713982246692,-777.8,0.00011385,2]
[323428644,1713982261886,57613.7074858,8.219e-05,2]
[323428645,1713982262506,252.18517052,8.219e-05,2]
[323428656,1713982585605,513.15,8.238e-05,2]
[323428691,1713983100853,487.49,8.219e-05,2]
[323428711,1713983403690,-216.07711077,9.463e-05,2]
[323428712,1713983403712,-155.0,9.464e-05,2]
[323428713,1713983403734,-3383.32455658,9.464e-05,2]
[323428714,1713983403755,-245.59833265,9.465e-05,2]
[323428715,1713983404417,-4000.0,9.465e-05,2]
[323428716,1713983405051,-86.98941406,9.465e-05,2]
[323428717,1713983405073,-1460.77655516,9.465e-05,2]
[323428718,1713983405097,-238.25600323,9.466e-05,2]
[323428719,1713983405120,-155.0,9.466e-05,2]
[323428720,1713983405143,-912.03,9.466e-05,2]
[323428721,1713983405164,-155.0,9.466e-05,2]
[323428722,1713983405187,-155.0,9.466e-05,2]
[323428723,1713983405209,-155.0,9.467e-05,2]
[323428724,1713983405231,-681.94802755,9.469e-05,2]